fUST/lending_fUST_20250221
["ID","MTS","AMOUNT","RATE_DAILY","PERIOD"]
[353906083,1740125444777,-500.0,0.00014109,2]
[353906084,1740125444786,-500.0,0.00014109,2]
[353906085,1740125444795,-500.0,0.00014109,2]
[353906086,1740125444804,-500.0,0.00014109,2]
[353906087,1740125444813,-500.0,0.00014109,2]
[353906088,1740125444823,-500.0,0.00014109,2]
[353906089,1740125444832,-950.43,0.00014109,2]
[353906090,1740125444842,-1841.06,0.00014109,2]
[353906091,1740125444851,-500.0,0.00014109,2]
[353906092,1740125444862,-1022.03,0.00014109,2]
[353906093,1740125444871,-4522.14,0.00014109,2]
[353906094,1740125444880,-9150.2,0.00014109,2]
[353906095,1740125444889,-834.46,0.00014109,2]
[353906096,1740125444898,-2062.28,0.00014109,2]
[353906097,1740125444907,-1133.59,0.00014109,2]
[353906098,1740125444916,-500.0,0.00014109,2]
[353906099,1740125444926,-1131.97,0.00014109,2]
[353906100,1740125444935,-500.0,0.00014109,2]
[353906101,1740125444944,-1333.29,0.00014109,2]
[353906102,1740125444954,-500.0,0.00014109,2]
[353906103,1740125444963,-500.0,0.00014109,2]
[353906104,1740125444973,-919.72,0.00014109,2]
[353906105,1740125444983,-500.0,0.00014109,2]
[353906106,1740125444992,-500.0,0.00014109,2]
[353906107,1740125445001,-1906.96,0.00014109,2]
[353906108,1740125445011,-2462.17,0.00014109,2]
[353906109,1740125445022,-3332.39,0.00014109,2]
[353906110,1740125445032,-550.61,0.00014109,2]
[353906111,1740125445041,-718.46,0.00014109,2]
[353906112,1740125445050,-500.0,0.00014109,2]
[353906113,1740125445059,-946.49,0.00014109,2]
[353906114,1740125445068,-1843.65,0.00014109,2]
[353906115,1740125445077,-18313.93,0.00014109,2]
[353906116,1740125445087,-500.0,0.00014109,2]
[353906117,1740125445096,-601.48,0.00014109,2]
[353906118,1740125445105,-7334.37,0.00014109,2]
[353906119,1740125445114,-532.54,0.00014109,2]
[353906120,1740125445123,-912.7,0.00014109,2]
[353906121,1740125445133,-1113.9,0.00014109,2]
[353906122,1740125445144,-500.0,0.00014109,2]
[353906123,1740125445154,-787.82,0.00014109,2]
[353906124,1740125445164,-1005.09,0.00014109,2]
[353906125,1740125445173,-627.24,0.00014109,2]
[353906126,1740125445183,-559.42,0.00014109,2]
[353906127,1740125445192,-1252.26,0.00014109,2]
[353906128,1740125445202,-561.83,0.00014109,2]
[353906129,1740125445213,-1713.02,0.00014109,2]
[353906130,1740125445222,-3945.07,0.00014109,2]
[353906131,1740125445231,-500.0,0.00014109,2]
[353906132,1740125445240,-1056.97,0.00014109,2]
[353906133,1740125445250,-500.0,0.00014109,2]
[353906134,1740125445261,-500.0,0.00014173,2]
[353906135,1740125445271,-500.0,0.00014173,2]
[353906136,1740125445280,-500.0,0.00014173,2]
[353906138,1740125445289,-508.28951394,0.00014173,2]
[353906140,1740125445299,-501.3968598,0.00014173,2]
[353906141,1740125445308,-500.0,0.00014173,2]
[353906142,1740125445317,-500.0,0.00014173,2]
[353906143,1740125445326,-501.07938361,0.00014173,2]
[353906144,1740125445335,-500.0,0.00014173,2]
[353906145,1740125445344,-500.0,0.00014173,2]
[353906146,1740125445353,-279.99377584,0.00014173,2]
[353906147,1740125445363,-500.0,0.00014173,2]
[353906148,1740125445372,-502.16312422,0.00014173,2]
[353906149,1740125445381,-500.0,0.00014191,2]
[353906150,1740125445390,-500.0,0.00014191,2]
[353906151,1740125445399,-601.54,0.00014191,2]
[353906152,1740125445408,-863.88,0.00014191,2]
[353906153,1740125445418,-312.56967895,0.00014191,2]
[353906154,1740125445427,-500.0,0.00014191,2]
[353906155,1740125445436,-500.0,0.00014191,2]
[353906156,1740125445445,-500.0,0.00014191,2]
[353906157,1740125445458,-500.0,0.00014191,2]
[353906158,1740125445468,-575.04,0.00014191,2]
[353906159,1740125445477,-500.0,0.00014191,2]
[353906160,1740125445486,-500.0,0.00014191,2]
[353906161,1740125445497,-500.0,0.00014191,2]
[353906162,1740125445507,-500.0,0.00014191,2]
[353906163,1740125445517,-500.0,0.00014191,2]
[353906164,1740125445527,-590.96,0.00014191,2]
[353906165,1740125445537,-500.0,0.00014191,2]
[353906166,1740125445547,-540.44,0.00014191,2]
[353906167,1740125445556,-500.0,0.00014191,2]
[353906168,1740125445567,-500.0,0.00014191,2]
[353906169,1740125445577,-500.0,0.00014191,2]
[353906170,1740125445587,-500.0,0.00014191,2]
[353906171,1740125445598,-500.0,0.00014191,2]
[353906172,1740125445608,-500.0,0.00014191,2]
[353906173,1740125445617,-500.0,0.00014191,2]
[353906174,1740125445627,-500.0,0.00014191,2]
[353906175,1740125445637,-950.43,0.00014191,2]
[353906176,1740125445646,-1841.06,0.00014191,2]
[353906177,1740125445656,-500.0,0.00014191,2]
[353906178,1740125445665,-1022.03,0.00014191,2]
[353906179,1740125445675,-4522.14,0.00014191,2]
[353906180,1740125445685,-9150.2,0.00014191,2]
[353906181,1740125445694,-834.46,0.00014191,2]
[353906190,1740125445796,-2062.28,0.00014191,2]
[353906192,1740125445806,-1133.59,0.00014191,2]
[353906194,1740125445816,-562.53035668,0.00014191,2]
[353906196,1740125445827,-1131.97,0.00014191,2]
[353906198,1740125445836,-500.0,0.00014191,2]
[353906200,1740125445846,-1333.29,0.00014191,2]
[353906202,1740125445856,-500.0,0.00014191,2]
[353906204,1740125445865,-500.0,0.00014191,2]
[353906206,1740125445875,-919.72,0.00014191,2]
[353906208,1740125445885,-500.0,0.00014191,2]
[353906210,1740125445894,-500.0,0.00014191,2]
[353906212,1740125445904,-1906.96,0.00014191,2]
[353906214,1740125445914,-2462.17,0.00014191,2]
[353906216,1740125445923,-3332.39,0.00014191,2]
[353906218,1740125445933,-550.61,0.00014191,2]
[353906220,1740125445946,-718.46,0.00014191,2]
[353906222,1740125445967,-500.0,0.00014191,2]
[353906224,1740125445976,-946.49,0.00014191,2]
[353906226,1740125445986,-1843.65,0.00014191,2]
[353906228,1740125445995,-18313.93,0.00014191,2]
[353906230,1740125446004,-500.0,0.00014191,2]
[353906232,1740125446014,-601.48,0.00014191,2]
[353906234,1740125446023,-7334.37,0.00014191,2]
[353906236,1740125446034,-532.54,0.00014191,2]
[353906238,1740125446043,-912.7,0.00014191,2]
[353906240,1740125446052,-1113.9,0.00014191,2]
[353906242,1740125446061,-500.0,0.00014191,2]
[353906244,1740125446070,-787.82,0.00014191,2]
[353906246,1740125446079,-1005.09,0.00014191,2]
[353906248,1740125446089,-627.24,0.00014191,2]
[353906250,1740125446099,-559.42,0.00014191,2]
[353906252,1740125446108,-1252.26,0.00014191,2]
[353906254,1740125446117,-561.83,0.00014191,2]
[353906255,1740125446127,-1713.02,0.00014191,2]
[353906256,1740125446137,-3945.07,0.00014191,2]
[353906257,1740125446147,-500.0,0.00014191,2]
[353906258,1740125446156,-1056.97,0.00014191,2]
[353906259,1740125446169,-500.0,0.00014191,2]
[353906260,1740125446179,-1284.0025602,0.00014198,2]
[353906261,1740125446189,-225.85220959,0.00014198,2]
[353906262,1740125446198,-160.0,0.00014199,2]
[353906263,1740125446208,-49804.79049797,0.000142,5]
[353906264,1740125446217,-318158.06257543,0.000142,5]
[353906265,1740125446360,-7039.78013617,0.000142,5]
[353906266,1740125446372,-2303.38937002,0.000142,5]
[353906267,1740125446393,-456.89134235,0.00013698,2]
[353906268,1740125446405,-43.10865765,0.00013698,2]
[353906269,1740125446415,-1053.77734235,0.000142,5]
[353906275,1740126512738,1079.29552904,0.00018005,90]
[353906277,1740126553887,160.804693,0.0001374,7]
[353906309,1740126632179,-500.0,0.00011588,2]
[353906310,1740126632189,-287.3043531,0.00012698,2]
[353906311,1740126632199,-465.03213198,0.00013592,2]
[353906312,1740126632208,-300.0,0.00013697,2]
[353906313,1740126632218,-500.0,0.00013698,2]
[353906314,1740126632227,-553.69,0.00013698,2]
[353906315,1740126632236,-500.0,0.00013698,2]
[353906316,1740126632246,-505.80932262,0.00013698,2]
[353906317,1740126632255,-500.0,0.00013698,2]
[353906318,1740126632264,-500.0,0.00013698,2]
[353906319,1740126632274,-500.0,0.00013698,2]
[353906320,1740126632283,-1252.26,0.00013698,2]
[353906321,1740126632292,-500.0,0.00013698,2]
[353906322,1740126632301,-510.40146625,0.00013698,2]
[353906323,1740126632310,-827.88,0.00013698,2]
[353906324,1740126632319,-500.0,0.00013698,2]
[353906325,1740126632329,-500.0,0.00013698,2]
[353906326,1740126632339,-500.0,0.00013698,2]
[353906327,1740126632348,-500.0,0.00013698,2]
[353906328,1740126632358,-500.0,0.00013698,2]
[353906329,1740126632367,-577.22,0.00013698,2]
[353906330,1740126632377,-500.0,0.00013698,2]
[353906331,1740126632387,-500.0,0.00013698,2]
[353906332,1740126632396,-500.0,0.00013698,2]
[353906333,1740126632405,-500.0,0.00013698,2]
[353906334,1740126632415,-500.0,0.00013698,2]
[353906335,1740126632424,-309.05478744,0.00013698,2]
[353906336,1740126632434,-593.2,0.00013698,2]
[353906337,1740126632443,-500.0,0.00013698,2]
[353906338,1740126632452,-500.0,0.00013698,2]
[353906339,1740126632462,-500.0,0.00013698,2]
[353906340,1740126632471,-500.0,0.00013698,2]
[353906341,1740126632480,-561.1665314,0.00013698,2]
[353906342,1740126632490,-500.0,0.00013698,2]
[353906343,1740126632499,-500.0,0.00013698,2]
[353906344,1740126632508,-500.0,0.00013698,2]
[353906345,1740126632518,-257.04340586,0.00013698,2]
[353906346,1740126632527,-1138.49,0.00013698,2]
[353906347,1740126632536,-500.0,0.00013698,2]
[353906348,1740126632545,-506.24605091,0.00013698,2]
[353906349,1740126632556,-500.0,0.00013698,2]
[353906350,1740126632565,-500.0,0.00013698,2]
[353906351,1740126632575,-583.12042637,0.00013698,2]
[353906352,1740126632585,-500.0,0.00013698,2]
[353906353,1740126632595,-504.45646631,0.00013698,2]
[353906354,1740126632605,-500.0,0.00013698,2]
[353906355,1740126632614,-502.73680723,0.00013698,2]
[353906356,1740126632624,-787.82,0.00013698,2]
[353906357,1740126632634,-500.0,0.00013698,2]
[353906358,1740126632643,-569.28,0.00013698,2]
[353906359,1740126632653,-500.0,0.00013698,2]
[353906360,1740126632663,-500.0,0.00013698,2]
[353906361,1740126632673,-500.0,0.00013698,2]
[353906362,1740126632683,-500.0,0.00013698,2]
[353906363,1740126632692,-500.0,0.00013698,2]
[353906364,1740126632701,-561.83,0.00013698,2]
[353906365,1740126632711,-185.3585877,0.00013698,2]
[353906366,1740126632720,-500.0,0.00013698,2]
[353906367,1740126632729,-1101.01,0.00013698,2]
[353906368,1740126632739,-500.0,0.00013698,2]
[353906369,1740126632747,-559.42,0.00013698,2]
[353906370,1740126632757,-500.0,0.00013698,2]
[353906371,1740126632765,-500.0,0.00013698,2]
[353906372,1740126632775,-500.0,0.00013698,2]
[353906373,1740126632784,-4019.65,0.00013698,2]
[353906374,1740126632793,-500.0,0.00013698,2]
[353906375,1740126632803,-500.0,0.00013698,2]
[353906376,1740126632812,-957.96,0.00013698,2]
[353906377,1740126632822,-500.0,0.00013698,2]
[353906378,1740126632835,-500.0,0.00013698,2]
[353906379,1740126632844,-500.0,0.00013698,2]
[353906380,1740126632853,-500.0,0.00013698,2]
[353906381,1740126632863,-500.0,0.00013698,2]
[353906382,1740126632874,-4538.08,0.00013698,2]
[353906383,1740126632883,-500.0,0.00013698,2]
[353906384,1740126632893,-500.0,0.00013698,2]
[353906385,1740126632903,-500.0,0.00013698,2]
[353906386,1740126632912,-500.0,0.00013698,2]
[353906387,1740126632922,-1086.35,0.00013698,2]
[353906388,1740126632931,-2072.32,0.00013698,2]
[353906389,1740126632941,-500.0,0.00013698,2]
[353906390,1740126632950,-1845.32,0.00013698,2]
[353906391,1740126632959,-1021.33,0.00013698,2]
[353906392,1740126632968,-9716.41,0.00013698,2]
[353906393,1740126632978,-500.0,0.00013698,2]
[353906394,1740126632987,-833.11,0.00013698,2]
[353906395,1740126632996,-2571.73,0.00013698,2]
[353906396,1740126633005,-500.0,0.00013698,2]
[353906397,1740126633014,-328.92,0.00013698,2]
[353906398,1740126633023,-575.78,0.00013698,2]
[353906399,1740126633032,-500.0,0.00013698,2]
[353906400,1740126633042,-500.0,0.00013698,2]
[353906401,1740126633051,-500.0,0.00013698,2]
[353906402,1740126633061,-1279.01,0.00013698,2]
[353906403,1740126633071,-718.46,0.00013698,2]
[353906404,1740126633080,-946.49,0.00013698,2]
[353906405,1740126633089,-500.0,0.00013698,2]
[353906406,1740126633098,-18313.93,0.00013698,2]
[353906407,1740126633108,-1997.41,0.00013698,2]
[353906408,1740126633118,-949.62,0.00013698,2]
[353906409,1740126633127,-601.48,0.00013698,2]
[353906410,1740126633136,-532.54,0.00013698,2]
[353906411,1740126633146,-3490.45,0.00013698,2]
[353906412,1740126633156,-500.0,0.00013698,2]
[353906413,1740126633166,-627.24,0.00013698,2]
[353906414,1740126633176,-361.1070461,0.00013698,2]
[353906415,1740126633185,-500.0,0.00013698,2]
[353906416,1740126633194,-7334.37,0.00013698,2]
[353906417,1740126633203,-1843.65,0.00013698,2]
[353906418,1740126633213,-506.52428404,0.00013698,2]
[353906419,1740126633222,-305.12475772,0.00013698,2]
[353906420,1740126633232,-1113.9,0.00013698,2]
[353906421,1740126633241,-500.0,0.00013698,2]
[353906422,1740126633251,-500.0,0.00013698,2]
[353906423,1740126633261,-345.318742,0.00013699,2]
[353906424,1740126633270,-1159.097911,0.00013699,2]
[353906425,1740126633280,-553.69,0.0001378,2]
[353906426,1740126633290,-372.77038558,0.0001378,2]
[353906427,1740126633299,-500.0,0.0001378,2]
[353906428,1740126633308,-500.0,0.0001378,2]
[353906429,1740126633317,-1252.26,0.0001378,2]
[353906430,1740126633327,-500.0,0.0001378,2]
[353906431,1740126633336,-827.88,0.0001378,2]
[353906432,1740126633345,-500.0,0.0001378,2]
[353906433,1740126633354,-500.0,0.0001378,2]
[353906434,1740126633366,-500.0,0.0001378,2]
[353906435,1740126633375,-500.0,0.0001378,2]
[353906436,1740126633385,-500.0,0.0001378,2]
[353906437,1740126633394,-577.22,0.0001378,2]
[353906438,1740126633404,-500.0,0.0001378,2]
[353906439,1740126633414,-500.0,0.0001378,2]
[353906440,1740126633423,-500.0,0.0001378,2]
[353906441,1740126633432,-500.0,0.0001378,2]
[353906442,1740126633442,-593.2,0.0001378,2]
[353906443,1740126633452,-500.0,0.0001378,2]
[353906444,1740126633461,-500.0,0.0001378,2]
[353906445,1740126633470,-500.0,0.0001378,2]
[353906446,1740126633479,-500.0,0.0001378,2]
[353906447,1740126633489,-500.0,0.0001378,2]
[353906448,1740126633498,-500.0,0.0001378,2]
[353906449,1740126633507,-500.0,0.0001378,2]
[353906450,1740126633516,-1138.49,0.0001378,2]
[353906451,1740126633525,-500.0,0.0001378,2]
[353906452,1740126633535,-500.0,0.0001378,2]
[353906453,1740126633545,-500.0,0.0001378,2]
[353906454,1740126633555,-787.82,0.0001378,2]
[353906455,1740126633566,-500.0,0.0001378,2]
[353906456,1740126633576,-569.28,0.0001378,2]
[353906457,1740126633586,-500.0,0.0001378,2]
[353906458,1740126633595,-500.0,0.0001378,2]
[353906459,1740126633604,-500.0,0.0001378,2]
[353906460,1740126633614,-500.0,0.0001378,2]
[353906461,1740126633623,-500.0,0.0001378,2]
[353906462,1740126633632,-561.83,0.0001378,2]
[353906463,1740126633642,-500.0,0.0001378,2]
[353906464,1740126633652,-1101.01,0.0001378,2]
[353906465,1740126633661,-500.0,0.0001378,2]
[353906466,1740126633671,-559.42,0.0001378,2]
[353906467,1740126633681,-500.0,0.0001378,2]
[353906468,1740126633690,-500.0,0.0001378,2]
[353906469,1740126633699,-500.0,0.0001378,2]
[353906470,1740126633708,-4019.65,0.0001378,2]
[353906471,1740126633718,-500.0,0.0001378,2]
[353906472,1740126633727,-500.0,0.0001378,2]
[353906473,1740126633736,-957.96,0.0001378,2]
[353906474,1740126633745,-500.0,0.0001378,2]
[353906475,1740126633755,-500.0,0.0001378,2]
[353906476,1740126633764,-4538.08,0.0001378,2]
[353906477,1740126633773,-596.24763349,0.0001378,2]
[353906478,1740126633783,-500.0,0.0001378,2]
[353906479,1740126633792,-248.27862739,0.0001378,2]
[353906480,1740126633801,-1086.35,0.0001378,2]
[353906481,1740126633811,-2072.32,0.0001378,2]
[353906482,1740126633820,-500.0,0.0001378,2]
[353906483,1740126633832,-1845.32,0.0001378,2]
[353906484,1740126633842,-1021.33,0.0001378,2]
[353906485,1740126633851,-9716.41,0.0001378,2]
[353906486,1740126633861,-500.0,0.0001378,2]
[353906487,1740126633871,-833.11,0.0001378,2]
[353906488,1740126633880,-2571.73,0.0001378,2]
[353906489,1740126633889,-500.0,0.0001378,2]
[353906490,1740126633899,-575.78,0.0001378,2]
[353906491,1740126633908,-500.0,0.0001378,2]
[353906492,1740126633919,-500.0,0.0001378,2]
[353906493,1740126633927,-593.001473,0.0001378,2]
[353906494,1740126633937,-1279.01,0.0001378,2]
[353906495,1740126634055,-718.46,0.0001378,2]
[353906496,1740126634065,-946.49,0.0001378,2]
[353906497,1740126634075,-500.0,0.0001378,2]
[353906498,1740126634084,-18313.93,0.0001378,2]
[353906499,1740126634093,-1997.41,0.0001378,2]
[353906500,1740126634102,-949.62,0.0001378,2]
[353906501,1740126634111,-601.48,0.0001378,2]
[353906502,1740126634120,-532.54,0.0001378,2]
[353906503,1740126634131,-3490.45,0.0001378,2]
[353906504,1740126634140,-500.0,0.0001378,2]
[353906505,1740126634149,-627.24,0.0001378,2]
[353906506,1740126634159,-500.0,0.0001378,2]
[353906507,1740126634169,-7334.37,0.0001378,2]
[353906508,1740126634179,-1843.65,0.0001378,2]
[353906509,1740126634189,-1113.9,0.0001378,2]
[353906510,1740126634199,-309.5567162,0.000138,2]
[353906511,1740126634208,-553.69,0.00013863,2]
[353906512,1740126634217,-349.0215852,0.00013863,2]
[353906513,1740126634227,-500.0,0.00013863,2]
[353906514,1740126634236,-1252.26,0.00013863,2]
[353906515,1740126634246,-500.0,0.00013863,2]
[353906516,1740126634255,-827.88,0.00013863,2]
[353906517,1740126634264,-500.0,0.00013863,2]
[353906518,1740126634273,-500.0,0.00013863,2]
[353906519,1740126634283,-500.0,0.00013863,2]
[353906520,1740126634292,-500.0,0.00013863,2]
[353906521,1740126634302,-500.0,0.00013863,2]
[353906522,1740126634311,-577.22,0.00013863,2]
[353906523,1740126634320,-500.0,0.00013863,2]
[353906524,1740126634329,-500.0,0.00013863,2]
[353906525,1740126634338,-500.0,0.00013863,2]
[353906526,1740126634348,-500.0,0.00013863,2]
[353906527,1740126634357,-593.2,0.00013863,2]
[353906528,1740126634366,-500.0,0.00013863,2]
[353906529,1740126634375,-500.0,0.00013863,2]
[353906530,1740126634384,-500.0,0.00013863,2]
[353906531,1740126634393,-500.0,0.00013863,2]
[353906532,1740126634403,-500.0,0.00013863,2]
[353906533,1740126634413,-500.0,0.00013863,2]
[353906534,1740126634422,-500.0,0.00013863,2]
[353906535,1740126634431,-1138.49,0.00013863,2]
[353906536,1740126634441,-500.0,0.00013863,2]
[353906537,1740126634450,-500.0,0.00013863,2]
[353906538,1740126634459,-787.82,0.00013863,2]
[353906539,1740126634468,-500.0,0.00013863,2]
[353906540,1740126634477,-569.28,0.00013863,2]
[353906541,1740126634486,-500.0,0.00013863,2]
[353906542,1740126634496,-500.0,0.00013863,2]
[353906543,1740126634506,-500.0,0.00013863,2]
[353906544,1740126634515,-500.0,0.00013863,2]
[353906545,1740126634526,-561.83,0.00013863,2]
[353906546,1740126634535,-500.0,0.00013863,2]
[353906547,1740126634545,-1101.01,0.00013863,2]
[353906548,1740126634554,-511.36147348,0.00013863,2]
[353906549,1740126634564,-559.42,0.00013863,2]
[353906550,1740126634574,-500.0,0.00013863,2]
[353906551,1740126634583,-500.0,0.00013863,2]
[353906552,1740126634593,-500.0,0.00013863,2]
[353906553,1740126634603,-4019.65,0.00013863,2]
[353906554,1740126634613,-500.0,0.00013863,2]
[353906555,1740126634622,-500.0,0.00013863,2]
[353906556,1740126634632,-957.96,0.00013863,2]
[353906557,1740126634641,-500.0,0.00013863,2]
[353906558,1740126634651,-500.0,0.00013863,2]
[353906559,1740126634660,-4538.08,0.00013863,2]
[353906560,1740126634670,-500.0,0.00013863,2]
[353906561,1740126634679,-1086.35,0.00013863,2]
[353906562,1740126634689,-2072.32,0.00013863,2]
[353906563,1740126634698,-500.0,0.00013863,2]
[353906564,1740126634707,-1845.32,0.00013863,2]
[353906565,1740126634717,-1021.33,0.00013863,2]
[353906566,1740126634726,-9716.41,0.00013863,2]
[353906567,1740126634736,-500.0,0.00013863,2]
[353906568,1740126634745,-833.11,0.00013863,2]
[353906569,1740126634754,-2571.73,0.00013863,2]
[353906570,1740126634764,-500.0,0.00013863,2]
[353906571,1740126634773,-575.78,0.00013863,2]
[353906572,1740126634783,-500.0,0.00013863,2]
[353906573,1740126634792,-500.0,0.00013863,2]
[353906574,1740126634801,-1279.01,0.00013863,2]
[353906575,1740126634811,-718.46,0.00013863,2]
[353906576,1740126634821,-946.49,0.00013863,2]
[353906577,1740126634835,-500.0,0.00013863,2]
[353906578,1740126634844,-10814.45902813,0.00013863,2]
[353906579,1740126634950,-7499.47097187,0.00013863,2]
[353906580,1740126634960,-1997.41,0.00013863,2]
[353906581,1740126634969,-949.62,0.00013863,2]
[353906582,1740126634978,-601.48,0.00013863,2]
[353906583,1740126634988,-20.14269392,0.00013863,2]
[353906594,1740126637961,-1005.09,0.00013698,2]
[353906595,1740126637970,-396.47236334,0.00013698,2]
[353906602,1740126640270,-3120.71763666,0.00013698,2]
[353906603,1740126640280,-689.34,0.00013698,2]
[353906604,1740126640290,-500.0,0.00013698,2]
[353906605,1740126640299,-1005.09,0.0001378,2]
[353906606,1740126640308,-3517.19,0.0001378,2]
[353906607,1740126640319,-689.34,0.0001378,2]
[353906608,1740126640329,-500.0,0.0001378,2]
[353906609,1740126640338,-512.39730608,0.00013863,2]
[353906610,1740126640348,-3490.45,0.00013863,2]
[353906611,1740126640357,-500.0,0.00013863,2]
[353906612,1740126640366,-627.24,0.00013863,2]
[353906613,1740126640375,-500.0,0.00013863,2]
[353906614,1740126640385,-7334.37,0.00013863,2]
[353906615,1740126640394,-1843.65,0.00013863,2]
[353906616,1740126640404,-1113.9,0.00013863,2]
[353906617,1740126640413,-1005.09,0.00013863,2]
[353906618,1740126640422,-3517.19,0.00013863,2]
[353906619,1740126640432,-689.34,0.00013863,2]
[353906620,1740126640441,-500.0,0.00013863,2]
[353906621,1740126640450,-308.5185246,0.000139,2]
[353906622,1740126640459,-713.2550942,0.000139,2]
[353906623,1740126640469,-309.5567162,0.000139,2]
[353906624,1740126640478,-678.8020721,0.00013915,2]
[353906625,1740126640487,-160.804693,0.0001392,5]
[353906626,1740126640496,-1015.01956555,0.00013927,2]
[353906627,1740126640506,-8630.71077294,0.00013927,2]
[353906628,1740126640515,-160.804693,0.00013939,2]
[353906629,1740126640525,-500.0,0.00013944,2]
[353906630,1740126640534,-350.75746811,0.00013944,2]
[353906631,1740126640543,-500.0,0.00013944,2]
[353906632,1740126640552,-282.32860556,0.00013944,2]
[353906633,1740126640562,-500.0,0.00013944,2]
[353906634,1740126640571,-500.0,0.00013944,2]
[353906635,1740126640580,-500.0,0.00013944,2]
[353906636,1740126640589,-500.0,0.00013944,2]
[353906637,1740126640598,-500.0,0.00013944,2]
[353906638,1740126640607,-500.0,0.00013944,2]
[353906639,1740126640616,-213.48803046,0.00013944,2]
[353906640,1740126640625,-500.0,0.00013944,2]
[353906641,1740126640634,-500.0,0.00013944,2]
[353906642,1740126640643,-500.0,0.00013944,2]
[353906643,1740126640651,-500.0,0.00013944,2]
[353906644,1740126640661,-500.0,0.00013944,2]
[353906645,1740126640670,-500.0,0.00013944,2]
[353906646,1740126640680,-500.0,0.00013944,2]
[353906647,1740126640689,-500.0,0.00013944,2]
[353906648,1740126640698,-412.23374767,0.00013944,2]
[353906649,1740126640708,-500.0,0.00013944,2]
[353906650,1740126640718,-636.70956521,0.00013944,2]
[353906651,1740126640728,-353.52973595,0.00013944,2]
[353906652,1740126640738,-500.0,0.00013944,2]
[353906653,1740126640748,-500.0,0.00013944,2]
[353906654,1740126640759,-500.0,0.00013944,2]
[353906655,1740126640768,-500.0,0.00013944,2]
[353906656,1740126640777,-500.0,0.00013944,2]
[353906657,1740126640889,-500.0,0.00013944,2]
[353906658,1740126640900,-500.0,0.00013944,2]
[353906659,1740126640911,-500.0,0.00013944,2]
[353906660,1740126640920,-500.0,0.00013944,2]
[353906661,1740126640929,-500.0,0.00013944,2]
[353906662,1740126640938,-500.0,0.00013944,2]
[353906663,1740126640947,-500.0,0.00013944,2]
[353906664,1740126640956,-500.0,0.00013944,2]
[353906665,1740126640966,-500.0,0.00013944,2]
[353906666,1740126640974,-225.21151384,0.00013944,2]
[353906667,1740126640984,-500.0,0.00013944,2]
[353906668,1740126640995,-500.0,0.00013944,2]
[353906669,1740126641004,-500.0,0.00013944,2]
[353906670,1740126641013,-500.0,0.00013944,2]
[353906671,1740126641022,-500.0,0.00013944,2]
[353906672,1740126641031,-500.0,0.00013944,2]
[353906673,1740126641041,-500.0,0.00013944,2]
[353906674,1740126641050,-500.0,0.00013944,2]
[353906675,1740126641060,-500.0,0.00013944,2]
[353906676,1740126641069,-500.0,0.00013944,2]
[353906677,1740126641078,-500.0,0.00013944,2]